[Event "EYCC Girls U12 2018"]
[Site "Riga"]
[Date "2018.08.20"]
[Round "1"]
[White "Van Foreest, Machteld"]
[Black "Sippola, Sara-Olivia"]
[Result "1/2-1/2"]
[ECO "B39"]
[WhiteElo "2135"]
[BlackElo "1450"]
[Annotator "NA"]
[PlyCount "85"]
[EventDate "2018.08.20"]
[EventType "swiss"]
[EventCountry "LAT"]
[SourceTitle "playchess.com"]
[Source "ChessBase"]
[SourceQuality "1"]
[TimeControl "40/5400+30:1800+30"]

1. e4 {[%emt 0:00:00]} c5 {[%emt 0:00:00]} 2. Nf3 {[%emt 0:00:00]} Nc6 {[%emt 0:00:00]} 3. d4 {[%emt 0:00:00]} cxd4 {[%emt 0:00:00]} 4. Nxd4 {[%emt 0:00:00]} g6 {[%emt 0:00:01]} 5. c4 {[%emt 0:00:37]} Bg7 {[%emt 0:00:07]} 6. Be3 {[%emt 0:00:07]} Nf6 {[%emt 0:00:11]} 7. Nc3 {[%emt 0:00:08]} Ng4 {[%emt 0:00:23]} 8. Qxg4 {[%emt 0:00:10]} Nxd4 {[%emt 0:00:09]} 9. Qd1 {[%emt 0:00:07]} Ne6 {[%emt 0:00:12]} 10. Be2 {[%emt 0:05:53]} b6 {[%emt 0:06:51]} 11. O-O {[%emt 0:02:10]} Bb7 {[%emt 0:00:22]} 12. f3 {[%emt 0:01:48]} O-O {[%emt 0:00:41]} 13. Qd2 {[%emt 0:01:31]} d6 {[%emt 0:01:31]} 14. Rfd1 {[%emt 0:06:36]} Qd7 {[%emt 0:01:02]} 15. Nd5 {[%emt 0:02:19]} Rac8 $11 {[%emt 0:03:23]} 16. Rac1 {[%emt 0:01:46]} Nc7 {[%emt 0:05:43]} 17. Nc3 {[%emt 0:04:45]} Ne6 {[%emt 0:02:27]} 18. b3 {[%emt 0:07:41]} Rfd8 {[%emt 0:01:32]} 19. Nd5 {[%emt 0:04:59]} Nc5 {[%emt 0:05:25]} 20. Bg5 {[%emt 0:11:21]} Bxd5 {[%emt 0:05:32]} 21. exd5 {[%emt 0:05:31]} Qc7 {[%emt 0:02:02]} 22. Bf1 {[%emt 0:02:46]} Re8 {[%emt 0:01:00]} 23. Bf4 {[%emt 0:03:10]} Nd7 {[%emt 0:04:38]} 24. Bg3 {[%emt 0:01:26]} Ne5 {[%emt 0:01:32]} 25. f4 {[%emt 0:01:25]} Ng4 {[%emt 0:00:54]} 26. b4 {[%emt 0:04:13]} Qd7 {[%emt 0:05:43]} 27. Kh1 {[%emt 0:03:02]} Nf6 {[%emt 0:00:59]} 28. Be2 {[%emt 0:01:43]} Ne4 {[%emt 0:01:55]} 29. Qe3 {[%emt 0:01:31]} Nxg3+ {[%emt 0:05:30]} 30. Qxg3 {[%emt 0:00:05]} Qa4 {[%emt 0:02:01]} 31. Qb3 {[%emt 0:03:20]} Qxb3 {[%emt 0:00:39]} 32. axb3 {[%emt 0:00:01]} Rc7 {[%emt 0:03:47]} 33. b5 {[%emt 0:02:54]} h5 {[%emt 0:01:09]} 34. f5 {[%emt 0:02:15]} Rf8 {[%emt 0:07:57]} 35. fxg6 {[%emt 0:03:43]} fxg6 {[%emt 0:04:18]} 36. Bd3 {[%emt 0:01:17]} Kh7 {[%emt 0:01:04]} 37. Re1 {[%emt 0:04:59]} Be5 {[%emt 0:01:12]} 38. g3 {[%emt 0:03:08]} Rf3 {[%emt 0:02:33]} 39. Bc2 {[%emt 0:01:31]} Rc8 {[%emt 0:01:26]} 40. Rf1 {[%emt 0:00:00]} Rcf8 {[%emt 0:00:00]} 41. Rxf3 {[%emt 0:03:35]} Rxf3 {[%emt 0:00:43]} 42. Bd1 {[%emt 0:02:25]} Rf2 {[%emt 0:06:20]} 43. Kg1 {[%emt 0:04:23]} 1/2-1/2

[Event "EYCC Girls U12 2018"]
[Site "Riga"]
[Date "2018.08.20"]
[Round "1"]
[White "Karacsonyi, Kata"]
[Black "Romanova, Ela"]
[Result "1-0"]
[ECO "C60"]
[WhiteElo "1961"]
[BlackElo "1446"]
[Annotator "NA"]
[PlyCount "79"]
[EventDate "2018.08.20"]
[EventType "swiss"]
[EventCountry "LAT"]
[SourceTitle "playchess.com"]
[Source "ChessBase"]
[SourceQuality "1"]
[TimeControl "40/5400+30:1800+30"]

1. e4 {[%emt 0:00:00]} e5 {[%emt 0:00:00]} 2. Nf3 {[%emt 0:00:00]} Nc6 {[%emt 0:00:13]} 3. Bb5 {[%emt 0:00:00]} Nge7 {[%emt 0:01:43]} 4. Nc3 {[%emt 0:00:05]} d6 {[%emt 0:00:54]} 5. O-O {[%emt 0:09:28]} g6 {[%emt 0:07:35]} 6. d4 {[%emt 0:05:03]} a6 {[%emt 0:16:50]} 7. Ba4 {[%emt 0:08:33]} b5 {[%emt 0:03:07]} 8. Bb3 {[%emt 0:02:08]} exd4 {[%emt 0:13:44]} 9. Nxd4 {[%emt 0:06:08]} Bg7 {[%emt 0:06:18]} 10. Nxc6 {[%emt 0:24:13]} Nxc6 {[%emt 0:00:30]} 11. Bxf7+ {[%emt 0:03:58]} Kxf7 {[%emt 0:00:37]} 12. Qd5+ {[%emt 0:00:10]} Be6 {[%emt 0:02:42]} 13. Qxc6 {[%emt 0:00:11]} Qd7 {[%emt 0:08:03]} 14. Qxd7+ {[%emt 0:00:17]} Bxd7 {[%emt 0:00:07]} 15. Nd5 {[%emt 0:05:28]} Rac8 {[%emt 0:03:24]} 16. c3 {[%emt 0:02:46]} a5 {[%emt 0:05:08]} 17. Be3 {[%emt 0:07:07]} Rhe8 {[%emt 0:04:26]} 18. f3 {[%emt 0:01:39]} Bc6 {[%emt 0:07:43]} 19. Rad1 {[%emt 0:04:02]} h6 {[%emt 0:04:24]} 20. Rfe1 {[%emt 0:06:42]} g5 {[%emt 0:01:24]} 21. Bf2 {[%emt 0:02:47]} Re6 {[%emt 0:02:17]} 22. Kf1 {[%emt 0:02:20]} Ke8 {[%emt 0:00:58]} 23. Bd4 {[%emt 0:02:49]} Be5 {[%emt 0:03:20]} 24. Bxe5 {[%emt 0:01:08]} dxe5 {[%emt 0:00:26]} 25. Rd2 {[%emt 0:00:50]} Rd6 {[%emt 0:00:51]} 26. Red1 {[%emt 0:00:12]} Kf7 {[%emt 0:00:53]} 27. Ne3 {[%emt 0:00:35]} Rxd2 {[%emt 0:02:37]} 28. Rxd2 {[%emt 0:00:01]} Re8 {[%emt 0:00:30]} 29. Ke2 {[%emt 0:01:24]} Kg6 {[%emt 0:00:19]} 30. Nd5 {[%emt 0:00:16]} Bxd5 {[%emt 0:00:35]} 31. Rxd5 {[%emt 0:00:21]} c6 {[%emt 0:00:27]} 32. Rd6+ {[%emt 0:00:04]} Kg7 {[%emt 0:00:22]} 33. Rxc6 {[%emt 0:00:07]} Rb8 {[%emt 0:00:24]} 34. Ra6 {[%emt 0:01:16]} a4 {[%emt 0:00:15]} 35. Kd2 {[%emt 0:00:55]} h5 {[%emt 0:00:43]} 36. Re6 {[%emt 0:00:38]} b4 {[%emt 0:01:01]} 37. Rxe5 {[%emt 0:02:29]} Kf6 {[%emt 0:00:09]} 38. Rf5+ {[%emt 0:00:14]} Kg6 {[%emt 0:00:11]} 39. Ra5 {[%emt 0:00:22]} bxc3+ {[%emt 0:01:27]} 40. Kxc3 {[%emt 0:00:00]} 1-0

[Event "EYCC Girls U12 2018"]
[Site "Riga"]
[Date "2018.08.20"]
[Round "1"]
[White "Roebers, Eline"]
[Black "Lindstad, Livia"]
[Result "1/2-1/2"]
[ECO "C47"]
[WhiteElo "1857"]
[BlackElo "1433"]
[Annotator "NA"]
[PlyCount "85"]
[EventDate "2018.08.20"]
[EventType "swiss"]
[EventCountry "LAT"]
[SourceTitle "playchess.com"]
[Source "ChessBase"]
[SourceQuality "1"]
[TimeControl "40/5400+30:1800+30"]

1. e4 {[%emt 0:00:00]} e5 {[%emt 0:01:39]} 2. Nc3 {[%emt 0:00:00]} Nc6 {[%emt 0:00:44]} 3. Nf3 {[%emt 0:00:00]} Nf6 {[%emt 0:00:26]} 4. a3 {[%emt 0:00:00]} Be7 {[%emt 0:02:07]} 5. d4 {[%emt 0:01:37]} exd4 {[%emt 0:03:00]} 6. Nxd4 {[%emt 0:00:51]} O-O {[%emt 0:01:09]} 7. Be3 {[%emt 0:02:17]} b6 {[%emt 0:03:04]} 8. f3 {[%emt 0:03:58]} Nxd4 {[%emt 0:01:55]} 9. Bxd4 {[%emt 0:01:43]} Bb7 {[%emt 0:00:46]} 10. Bc4 {[%emt 0:04:33]} c5 {[%emt 0:03:02]} 11. Be3 {[%emt 0:02:05]} Qc7 {[%emt 0:02:30]} 12. O-O {[%emt 0:02:16]} a6 {[%emt 0:08:42]} 13. a4 {[%emt 0:01:46]} Bd6 {[%emt 0:03:42]} 14. Kh1 {[%emt 0:10:52]} Nh5 {[%emt 0:05:21]} 15. Nd5 {[%emt 0:04:00]} Bxd5 {[%emt 0:03:42]} 16. Qxd5 {[%emt 0:05:49]} Nf6 {[%emt 0:01:10]} 17. Qf5 {[%emt 0:03:02]} Rfe8 {[%emt 0:05:38]} 18. f4 {[%emt 0:05:58]} Bf8 {[%emt 0:12:41]} 19. e5 {[%emt 0:01:23]} d5 {[%emt 0:01:42]} 20. Bd3 {[%emt 0:01:23]} c4 {[%emt 0:02:05]} 21. exf6 {[%emt 0:02:12]} cxd3 {[%emt 0:01:14]} 22. Qxd3 {[%emt 0:04:54]} gxf6 {[%emt 0:01:39]} 23. Bd4 {[%emt 0:02:08]} Bg7 {[%emt 0:02:23]} 24. c3 {[%emt 0:03:38]} Re4 {[%emt 0:05:24]} 25. Qg3 {[%emt 0:09:14]} Qd6 {[%emt 0:03:04]} 26. Qf2 {[%emt 0:02:37]} Rb8 {[%emt 0:02:12]} 27. f5 {[%emt 0:03:44]} Bh6 {[%emt 0:04:20]} 28. Bxf6 {[%emt 0:06:23]} Be3 {[%emt 0:07:08]} 29. Qg3+ {[%emt 0:03:39]} Qxg3 {[%emt 0:00:05]} 30. hxg3 {[%emt 0:00:04]} d4 {[%emt 0:00:24]} 31. cxd4 {[%emt 0:02:44]} Bxd4 {[%emt 0:00:21]} 32. Bxd4 {[%emt 0:00:07]} Rxd4 {[%emt 0:00:10]} 33. Rf3 {[%emt 0:02:21]} Rd2 {[%emt 0:01:45]} 34. b3 {[%emt 0:00:40]} Rc8 {[%emt 0:01:17]} 35. Re1 {[%emt 0:03:12]} Rcc2 {[%emt 0:01:57]} 36. Re8+ {[%emt 0:01:42]} Kg7 {[%emt 0:00:10]} 37. f6+ {[%emt 0:00:51]} Kh6 {[%emt 0:01:04]} 38. Rb8 {[%emt 0:03:07]} Rxg2 {[%emt 0:01:27]} 39. Rxb6 {[%emt 0:01:07]} Rh2+ {[%emt 0:01:24]} 40. Kg1 {[%emt 0:00:00]} Rhg2+ {[%emt 0:00:00]} 41. Kh1 {[%emt 0:02:32]} Rh2+ {[%emt 0:01:21]} 42. Kg1 {[%emt 0:00:20]} Rhg2+ {[%emt 0:00:35]} 43. Kh1 {[%emt 0:00:10]} 1/2-1/2

[Event "EYCC Girls U12 2018"]
[Site "Riga"]
[Date "2018.08.20"]
[Round "1"]
[White "Katter, Marlene"]
[Black "Gaal, Zsoka"]
[Result "0-1"]
[ECO "A48"]
[WhiteElo "1447"]
[BlackElo "2008"]
[Annotator "NA"]
[PlyCount "72"]
[EventDate "2018.08.20"]
[EventType "swiss"]
[EventCountry "LAT"]
[SourceTitle "playchess.com"]
[Source "ChessBase"]
[SourceQuality "1"]
[TimeControl "40/5400+30:1800+30"]

1. d4 {[%emt 0:00:00]} Nf6 {[%emt 0:00:19]} 2. Bf4 {[%emt 0:00:44]} g6 {[%emt 0:00:26]} 3. Nf3 {[%emt 0:00:41]} Bg7 {[%emt 0:00:15]} 4. e3 {[%emt 0:01:02]} O-O {[%emt 0:00:21]} 5. Be2 {[%emt 0:00:59]} d6 {[%emt 0:00:27]} 6. h3 {[%emt 0:01:03]} Nfd7 {[%emt 0:01:45]} 7. Nbd2 {[%emt 0:04:19]} e5 {[%emt 0:02:14]} 8. Bh2 {[%emt 0:01:58]} f5 {[%emt 0:03:25]} 9. Nb3 {[%emt 0:08:18]} e4 {[%emt 0:01:18]} 10. Nfd2 {[%emt 0:02:01]} Nc6 {[%emt 0:01:53]} 11. c4 {[%emt 0:04:19]} Nf6 {[%emt 0:02:42]} 12. a3 {[%emt 0:06:30]} Ne7 {[%emt 0:02:56]} 13. Qc2 {[%emt 0:04:02]} Be6 {[%emt 0:05:17]} 14. d5 {[%emt 0:05:05]} Bf7 {[%emt 0:03:42]} 15. Nd4 {[%emt 0:02:21]} Qd7 {[%emt 0:10:35]} 16. b4 {[%emt 0:05:36]} a5 {[%emt 0:07:09]} 17. O-O {[%emt 0:04:25]} g5 {[%emt 0:07:52]} 18. Rfd1 {[%emt 0:13:10]} Ng6 {[%emt 0:10:26]} 19. N2b3 {[%emt 0:06:29]} axb4 {[%emt 0:03:01]} 20. axb4 {[%emt 0:00:46]} f4 {[%emt 0:04:27]} 21. Bf1 {[%emt 0:05:59]} fxe3 {[%emt 0:06:37]} 22. fxe3 {[%emt 0:02:04]} g4 {[%emt 0:04:39]} 23. Nd2 {[%emt 0:05:16]} gxh3 {[%emt 0:06:29]} 24. gxh3 {[%emt 0:02:01]} Rae8 {[%emt 0:05:08]} 25. Ra7 {[%emt 0:02:27]} Qc8 {[%emt 0:00:27]} 26. Rda1 {[%emt 0:02:33]} Nh4 {[%emt 0:02:11]} 27. Qb3 {[%emt 0:01:23]} Kh8 {[%emt 0:01:20]} 28. Kh1 {[%emt 0:03:10]} Nd7 {[%emt 0:03:27]} 29. Nb5 {[%emt 0:01:03]} Bxa1 {[%emt 0:00:43]} 30. Rxa1 {[%emt 0:00:30]} Ne5 {[%emt 0:01:14]} 31. Nxe4 {[%emt 0:01:12]} Qf5 {[%emt 0:00:43]} 32. Ng3 {[%emt 0:01:32]} Qf3+ {[%emt 0:00:33]} 33. Kg1 {[%emt 0:00:10]} Rg8 {[%emt 0:00:53]} 34. Nxc7 {[%emt 0:00:45]} Rxg3+ {[%emt 0:00:28]} 35. Bxg3 {[%emt 0:00:11]} Qxg3+ {[%emt 0:00:13]} 36. Kh1 {[%emt 0:00:36]} Rg8 {[%emt 0:00:41]} 0-1

[Event "EYCC Girls U12 2018"]
[Site "Riga"]
[Date "2018.08.20"]
[Round "1"]
[White "Gasimova, Samra"]
[Black "Zvereva, Margarita"]
[Result "1/2-1/2"]
[ECO "D58"]
[WhiteElo "1437"]
[BlackElo "1898"]
[Annotator "NA"]
[PlyCount "150"]
[EventDate "2018.08.20"]
[EventType "swiss"]
[EventCountry "LAT"]
[SourceTitle "playchess.com"]
[Source "ChessBase"]
[SourceQuality "1"]
[TimeControl "40/5400+30:1800+30"]

1. d4 {[%emt 0:00:00]} d5 {[%emt 0:00:00]} 2. Nf3 {[%emt 0:00:00]} Nf6 {[%emt 0:00:04]} 3. c4 {[%emt 0:00:17]} e6 {[%emt 0:00:17]} 4. Nc3 {[%emt 0:00:15]} Be7 {[%emt 0:00:21]} 5. Bg5 {[%emt 0:00:32]} h6 {[%emt 0:01:22]} 6. Bh4 {[%emt 0:00:21]} O-O {[%emt 0:01:25]} 7. e3 {[%emt 0:00:08]} b6 {[%emt 0:01:44]} 8. Bxf6 {[%emt 0:00:43]} Bxf6 {[%emt 0:00:39]} 9. cxd5 {[%emt 0:00:14]} exd5 {[%emt 0:00:12]} 10. Bd3 {[%emt 0:02:28]} Be6 {[%emt 0:02:17]} 11. O-O {[%emt 0:01:17]} c5 {[%emt 0:15:16]} 12. Rc1 {[%emt 0:03:02]} Nd7 {[%emt 0:04:41]} 13. Be2 {[%emt 0:13:29]} Qe7 {[%emt 0:19:15]} 14. Qd2 {[%emt 0:10:35]} Rfd8 {[%emt 0:09:40]} 15. Rfd1 {[%emt 0:00:41]} Rac8 {[%emt 0:11:03]} 16. Ba6 {[%emt 0:07:17]} Rb8 {[%emt 0:02:25]} 17. Bb5 {[%emt 0:02:23]} Nf8 {[%emt 0:10:00]} 18. h3 {[%emt 0:04:59]} Qb7 {[%emt 0:04:14]} 19. Be2 {[%emt 0:03:48]} Rbc8 {[%emt 0:02:53]} 20. Qd3 {[%emt 0:16:29]} c4 {[%emt 0:02:20]} 21. Qd2 {[%emt 0:05:12]} b5 {[%emt 0:00:59]} 22. a3 {[%emt 0:00:29]} a5 {[%emt 0:01:20]} 23. Na2 {[%emt 0:00:44]} Ra8 {[%emt 0:01:25]} 24. Nh2 {[%emt 0:12:00]} Be7 {[%emt 0:01:26]} 25. Ra1 {[%emt 0:02:31]} b4 {[%emt 0:01:00]} 26. a4 {[%emt 0:00:34]} Qc6 {[%emt 0:01:33]} 27. Nc1 {[%emt 0:00:35]} Rab8 {[%emt 0:01:23]} 28. Bg4 {[%emt 0:01:59]} c3 {[%emt 0:02:37]} 29. Qc2 {[%emt 0:01:48]} cxb2 {[%emt 0:00:40]} 30. Qxb2 {[%emt 0:00:13]} Rdc8 {[%emt 0:01:01]} 31. Nb3 {[%emt 0:00:25]} Qb6 {[%emt 0:00:27]} 32. Rdc1 {[%emt 0:01:19]} Rc3 {[%emt 0:00:42]} 33. Bxe6 {[%emt 0:06:37]} Nxe6 {[%emt 0:00:16]} 34. Nf3 {[%emt 0:01:42]} Rbc8 {[%emt 0:00:31]} 35. Rab1 {[%emt 0:01:44]} Qc7 {[%emt 0:00:47]} 36. Ra1 {[%emt 0:00:19]} Bd8 {[%emt 0:00:42]} 37. h4 {[%emt 0:00:43]} Qc4 {[%emt 0:00:45]} 38. Rxc3 {[%emt 0:00:28]} bxc3 {[%emt 0:00:15]} 39. Qc2 {[%emt 0:00:08]} Rb8 {[%emt 0:00:37]} 40. Rb1 {[%emt 0:00:00]} Rb4 {[%emt 0:00:00]} 41. Ne5 {[%emt 0:00:39]} Qc7 {[%emt 0:11:53]} 42. Nc1 {[%emt 0:00:52]} Rxb1 {[%emt 0:01:08]} 43. Qxb1 {[%emt 0:00:06]} Bf6 {[%emt 0:11:19]} 44. Ned3 {[%emt 0:02:07]} Qc4 {[%emt 0:03:56]} 45. Qc2 {[%emt 0:03:31]} Bxh4 {[%emt 0:02:34]} 46. Na2 {[%emt 0:02:49]} Be7 {[%emt 0:02:12]} 47. Ne5 {[%emt 0:00:25]} Qc7 {[%emt 0:01:02]} 48. Qxc3 {[%emt 0:00:44]} Qb7 {[%emt 0:00:37]} 49. Qc2 {[%emt 0:00:31]} Bd6 {[%emt 0:00:36]} 50. Nd3 {[%emt 0:01:52]} Ng5 {[%emt 0:00:28]} 51. Nc3 {[%emt 0:00:44]} Qc6 {[%emt 0:00:19]} 52. Qb3 {[%emt 0:03:23]} Qc4 {[%emt 0:00:42]} 53. Qxc4 {[%emt 0:02:27]} dxc4 {[%emt 0:00:02]} 54. Nc1 {[%emt 0:07:00]} Kf8 {[%emt 0:00:48]} 55. Kf1 {[%emt 0:00:13]} Bb4 {[%emt 0:00:20]} 56. N1a2 {[%emt 0:00:10]} Ke8 {[%emt 0:00:28]} 57. Ke2 {[%emt 0:00:22]} Kd7 {[%emt 0:00:26]} 58. Nd5 {[%emt 0:00:33]} Bd6 {[%emt 0:00:50]} 59. Nb6+ {[%emt 0:00:14]} Kc6 {[%emt 0:00:20]} 60. Nxc4 {[%emt 0:00:13]} Bc7 {[%emt 0:00:13]} 61. Kd3 {[%emt 0:00:30]} f5 {[%emt 0:00:47]} 62. Nc3 {[%emt 0:00:21]} Nf7 {[%emt 0:00:35]} 63. Nb5 {[%emt 0:01:11]} Bd8 {[%emt 0:00:26]} 64. f4 {[%emt 0:01:23]} g5 {[%emt 0:00:28]} 65. fxg5 {[%emt 0:00:19]} hxg5 {[%emt 0:00:15]} 66. Nc3 {[%emt 0:00:32]} Bc7 {[%emt 0:00:46]} 67. Ne2 {[%emt 0:01:36]} Kd5 {[%emt 0:00:37]} 68. Nc1 {[%emt 0:01:27]} Nd6 {[%emt 0:00:32]} 69. Nd2 {[%emt 0:01:40]} Ne4 {[%emt 0:00:30]} 70. Nf3 {[%emt 0:04:38]} f4 {[%emt 0:00:31]} 71. exf4 {[%emt 0:01:03]} gxf4 {[%emt 0:00:33]} 72. Na2 {[%emt 0:00:53]} Nf2+ {[%emt 0:00:20]} 73. Ke2 {[%emt 0:00:47]} Ne4 {[%emt 0:00:20]} 74. Kd3 {[%emt 0:00:07]} Nf2+ {[%emt 0:00:15]} 75. Ke2 {[%emt 0:00:37]} Ne4 {[%emt 0:00:11]} 1/2-1/2

[Event "EYCC Girls U12 2018"]
[Site "Riga"]
[Date "2018.08.21"]
[Round "2"]
[White "Gaal, Zsoka"]
[Black "Oz, Irem Ezra"]
[Result "1-0"]
[ECO "A06"]
[WhiteElo "2008"]
[BlackElo "1654"]
[Annotator "NA RC"]
[PlyCount "165"]
[EventDate "2018.08.20"]
[EventType "swiss"]
[EventCountry "LAT"]
[SourceTitle "playchess.com"]
[Source "ChessBase"]
[SourceQuality "1"]
[TimeControl "40/5400+30:1800+30"]

1. Nf3 {[%emt 0:00:00]} d5 {[%emt 0:00:00]} 2. g3 {[%emt 0:00:00]} Nf6 {[%emt 0:00:32]} 3. Bg2 {[%emt 0:00:14]} Bf5 {[%emt 0:01:28]} 4. c4 {[%emt 0:00:37]} c6 {[%emt 0:01:42]} 5. cxd5 {[%emt 0:03:02]} Nxd5 {[%emt 0:10:22]} 6. O-O {[%emt 0:07:32]} e6 {[%emt 0:03:52]} 7. d3 {[%emt 0:02:03]} Bg6 {[%emt 0:01:31]} 8. Nc3 {[%emt 0:04:05]} Be7 {[%emt 0:02:53]} 9. Bd2 {[%emt 0:05:08]} O-O {[%emt 0:03:13]} 10. Rc1 {[%emt 0:03:47]} Nd7 {[%emt 0:03:36]} 11. Nxd5 {[%emt 0:03:47]} exd5 {[%emt 0:00:36]} 12. Be3 {[%emt 0:04:58]} Qa5 {[%emt 0:07:24]} 13. a3 {[%emt 0:05:38]} Qb5 {[%emt 0:07:43]} 14. Nd4 {[%emt 0:14:40]} Qa5 {[%emt 0:05:43]} 15. Qb3 {[%emt 0:09:33]} Nc5 {[%emt 0:23:58]} 16. Qc2 {[%emt 0:04:51]} Ne6 {[%emt 0:03:34]} 17. Nf3 {[%emt 0:09:16]} Bf6 {[%emt 0:02:52]} 18. Bd2 {[%emt 0:03:58]} Qb6 {[%emt 0:01:47]} 19. Bc3 {[%emt 0:02:20]} Nd4 {[%emt 0:02:45]} 20. Nxd4 {[%emt 0:03:09]} Bxd4 {[%emt 0:00:12]} 21. Bxd4 {[%emt 0:00:58]} Qxd4 {[%emt 0:00:10]} 22. Qc3 {[%emt 0:04:56]} Qb6 {[%emt 0:01:16]} 23. d4 {[%emt 0:01:06]} Rfe8 {[%emt 0:01:10]} 24. e3 {[%emt 0:00:12]} Rad8 {[%emt 0:01:14]} 25. b4 {[%emt 0:00:34]} Be4 {[%emt 0:01:43]} 26. Rfd1 {[%emt 0:02:24]} Bxg2 {[%emt 0:01:05]} 27. Kxg2 {[%emt 0:00:02]} Rc8 {[%emt 0:00:30]} 28. Rd2 {[%emt 0:00:32]} Qd8 {[%emt 0:01:34]} 29. Rdc2 {[%emt 0:00:26]} a6 {[%emt 0:01:06]} 30. Qd3 {[%emt 0:00:47]} Qd7 {[%emt 0:00:43]} 31. a4 {[%emt 0:02:16]} Re6 {[%emt 0:01:08]} 32. Qf5 {[%emt 0:00:52]} Rd6 {[%emt 0:01:00]} 33. Qxd7 {[%emt 0:00:29]} Rxd7 {[%emt 0:00:05]} 34. b5 {[%emt 0:00:55]} axb5 {[%emt 0:00:06]} 35. axb5 {[%emt 0:00:02]} Rdc7 {[%emt 0:00:20]} 36. Rc5 {[%emt 0:01:00]} Kf8 {[%emt 0:00:57]} 37. e4 {[%emt 0:01:20]} dxe4 {[%emt 0:00:33]} 38. d5 {[%emt 0:00:10]} Ke7 {[%emt 0:01:29]} 39. b6 {[%emt 0:00:58]} Rd7 {[%emt 0:00:22]} 40. dxc6 {[%emt 0:00:00]} Rxc6 {[%emt 0:00:00]} 41. Rxc6 {[%emt 0:09:26]} bxc6 {[%emt 0:00:48]} 42. Ra1 {[%emt 0:14:41]} Rd8 {[%emt 0:02:40]} 43. Rc1 {[%emt 0:01:33]} Kd7 {[%emt 0:01:44]} 44. Rd1+ {[%emt 0:00:12]} Ke7 {[%emt 0:00:10]} 45. Rc1 {[%emt 0:01:29]} Rb8 {[%emt 0:00:42]} 46. Rxc6 {[%emt 0:00:41]} Rb7 {[%emt 0:00:06]} 47. Rc4 {[%emt 0:00:50]} f5 {[%emt 0:01:23]} 48. g4 {[%emt 0:00:49]} g6 {[%emt 0:02:22]} 49. gxf5 {[%emt 0:00:52]} gxf5 {[%emt 0:00:07]} 50. Rc6 {[%emt 0:01:14]} Kd8 {[%emt 0:04:30]} 51. Rf6 {[%emt 0:01:17]} Rg7+ {[%emt 0:05:08]} 52. Kf1 {[%emt 0:00:26]} Kc8 {[%emt 0:00:16]} 53. Rxf5 {[%emt 0:01:00]} Kb7 {[%emt 0:00:09]} 54. Rf6 {[%emt 0:00:58]} Rg6 {[%emt 0:02:11]} 55. Rxg6 {[%emt 0:01:20]} hxg6 {[%emt 0:00:07]} 56. Ke2 {[%emt 0:00:13]} Kxb6 {[%emt 0:00:21]} 57. Ke3 {[%emt 0:00:01]} Kc6 {[%emt 0:00:08]} 58. Kxe4 {[%emt 0:00:51]} Kd6 {[%emt 0:00:06]} 59. Kf4 {[%emt 0:00:08]} Ke6 {[%emt 0:00:05]} 60. Kg5 {[%emt 0:00:31]} Kf7 {[%emt 0:00:06]} 61. Kh6 {[%emt 0:01:06]} Kf6 {[%emt 0:00:14]} 62. h4 {[%emt 0:00:21]} Kf7 {[%emt 0:01:15]} 63. Kh7 {[%emt 0:00:18]} Kf6 {[%emt 0:00:53]} 64. Kg8 {[%emt 0:00:18]} Ke6 {[%emt 0:03:59]} 65. Kg7 {[%emt 0:00:31]} Kf5 {[%emt 0:00:27]} 66. f4 {[%emt 0:00:30]} Kxf4 {[%emt 0:01:41]} 67. Kxg6 {[%emt 0:00:07]} Ke5 {[%emt 0:00:09]} 68. h5 {[%emt 0:00:07]} Ke6 {[%emt 0:00:13]} 69. h6 {[%emt 0:00:02]} Ke7 {[%emt 0:00:30]} 70. h7 {[%emt 0:00:03]} Ke6 {[%emt 0:00:11]} 71. h8=Q {[%emt 0:00:08]} Kd5 {[%emt 0:00:05]} 72. Qf6 {[%emt 0:00:10]} Ke4 {[%emt 0:00:07]} 73. Qf5+ {[%emt 0:00:06]} Kd4 {[%emt 0:00:06]} 74. Kg5 {[%emt 0:00:07]} Ke3 {[%emt 0:00:10]} 75. Qf4+ {[%emt 0:00:05]} Ke2 {[%emt 0:00:06]} 76. Qg3 {[%emt 0:00:05]} Kf1 {[%emt 0:00:05]} 77. Qh2 {[%emt 0:00:04]} Ke1 {[%emt 0:00:03]} 78. Kf4 {[%emt 0:00:06]} Kd1 {[%emt 0:00:05]} 79. Ke3 {[%emt 0:00:03]} Kc1 {[%emt 0:00:03]} 80. Kd3 {[%emt 0:00:04]} Kb1 {[%emt 0:00:05]} 81. Kc3 {[%emt 0:00:04]} Ka1 {[%emt 0:00:11]} 82. Kb3 {[%emt 0:00:06]} Kb1 {[%emt 0:00:07]} 83. Qh1# {[%emt 0:00:04]} 1-0